Cogmind - Beta 11 X7 @@@ ROGUE MODE // 2021.09.26 @ 17:04:04 Player: LU-1G1 Result: Destroyed by R2-GUS(M) with Heavy Riot Gun Performance ------------- Evolutions (3) 1500 Regions Visited (13) 2600 Robots Destroyed (23) 115 Value Destroyed (442) 442 Prototype IDs (29) 580 Alien Tech Used (0) 0 Bonus (300) 300 TOTAL SCORE: 5537 Bonus ------- Aligned with FarCom 300 Cogmind --------- Core Integrity 0/700 Matter 240/300 Energy 94/100 System Corruption 2% Temperature Cool (20) Movement Core (50) Location -7/Zion Parts ------- > --- POWER (1) -------- (None) > --- PROPULSION (3) --- (None) > --- UTILITY (7) ------ (None) > --- WEAPON (2) ------- Longsword +1 > --- INVENTORY (5) ---- High-capacity Matter Pod (200) Transmission Jammer Peak State ------------ > --- POWER ------------ Micro Nuclear Core > --- PROPULSION ------- Xenon Bombardment Thruster Xenon Bombardment Thruster Xenon Bombardment Thruster > --- UTILITY ---------- Small Storage Unit Experimental Sensor Array Improved Signal Interpreter Improved Melee Analysis Suite Improved Melee Analysis Suite Hacking Suite Makeshift Hacking Suite > --- WEAPON ----------- Longsword +1 Spear > --- INVENTORY -------- Micro Nuclear Core Aerolev Unit High-capacity Matter Pod Improved Sensor Array Improved Terrain Scanner Transmission Jammer Trap Reconfigurator Mini Grenade Launcher [Rating: 58] Favorites ----------- Power Micro Nuclear Core Engine Light Ion Engine Power Core Micro Nuclear Core Propulsion Xenon Bombardment Thruster Treads Light Treads Wheel Compact Wheel Hover Unit Aerolev Unit Flight Unit Xenon Bombardment Thruster Utility Improved Melee Analysis Suite Device Weight Redist. System Storage Small Storage Unit Processor Improved Melee Analysis Suite Hackware Hacking Suite Weapon Light Assault Rifle Energy Gun Medium Laser Ballistic Gun Light Assault Rifle Ballistic Cannon Mini Assault Cannon Launcher Mini Grenade Launcher Special Weapon Welding Torch Slashing Weapon Longsword +1 Piercing Weapon Spear Build | -11 -10 -10 -9 -9 -9 -8 -8 -7 -7 -7 -7 -7 -7 ------- Run | Scr Mat Min Mat Min Exi Min Mat Fac Was Fac Low Low Zio Slots Evolved 6 | . . . 2 . . . 2 2 . . . . . Power . | . . . . . . . . . . . . . . Propulsion 1 | . . . 1 . . . . . . . . . . Utility 5 | . . . 1 . . . 2 2 . . . . . Weapon . | . . . . . . . . . . . . . . Parts Attached 73 | 6 1 5 7 1 3 2 5 25 . 4 4 8 2 Power 6 | 1 . . . . . . 1 4 . . . . . Engine 2 | 1 . . . . . . . 1 . . . . . Core 4 | . . . . . . . 1 3 . . . . . Reactor . | . . . . . . . . . . . . . . Propulsion 16 | 2 . 2 3 1 . . . 4 . 1 . 3 . Treads 2 | 2 . . . . . . . . . . . . . Leg . | . . . . . . . . . . . . . . Wheel 2 | . . 2 . . . . . . . . . . . Hover 3 | . . . . . . . . 1 . . . 2 . Flight 9 | . . . 3 1 . . . 3 . 1 . 1 . Utility 22 | 1 1 3 1 . 1 1 2 9 . 1 1 1 . Device 10 | . . 3 . . 1 . 1 3 . 1 . 1 . Storage 5 | 1 1 . 1 . . 1 1 . . . . . . Processor 5 | . . . . . . . . 5 . . . . . Hackware 2 | . . . . . . . . 1 . . 1 . . Protection . | . . . . . . . . . . . . . . Artifact . | . . . . . . . . . . . . . . Weapon 29 | 2 . . 3 . 2 1 2 8 . 2 3 4 2 Energy Gun 3 | . . . . . 1 . . 2 . . . . . Energy Cannon . | . . . . . . . . . . . . . . Ballistic Gun 3 | 2 . . . . . . 1 . . . . . . Ballistic Cannon 1 | . . . . . . . . 1 . . . . . Launcher 5 | . . . 1 . . 1 . 1 . . 1 1 . Special Weapon 2 | . . . 2 . . . . . . . . . . Impact Weapon . | . . . . . . . . . . . . . . Slashing Weapon 12 | . . . . . 1 . 1 4 . 1 2 2 1 Piercing Weapon 3 | . . . . . . . . . . 1 . 1 1 Special Melee Weapon . | . . . . . . . . . . . . . . Unidentified Prototypes 6 | . . 1 . . . . . 5 . . . . . Parts Lost 17 | . . . . 2 . . 3 . . 1 . 8 3 Power . | . . . . . . . . . . . . . . Propulsion 7 | . . . . 1 . . 2 . . 1 . 2 1 Utility 6 | . . . . . . . . . . . . 5 1 Weapon 4 | . . . . 1 . . 1 . . . . 1 1 Highest Loss Streak 5 | . . . . 1 . . 3 . . 1 . 5 2 Average Slot Usage (%) 73 | . 83 54 60 63 71 73 58 67 100 100 100 68 31 Engine 2 | . 13 . . . . . . . . . . . . Core 3 | . . . . . . . 7 6 7 7 7 3 . Treads 5 | . 27 . . . . . . . . . . . . Wheel 2 | . . 27 2 . . . . . . . . . . Flight 14 | . . . 28 23 33 33 24 10 23 23 23 13 5 Device 11 | . . 26 22 22 17 11 6 10 15 15 14 4 3 Storage 6 | . 14 . . . . 11 9 7 7 7 7 5 . Processor 9 | . . . . . . . . 21 23 23 23 13 . Hackware 3 | . . . . . . . . 4 7 7 7 12 . Ballistic Gun 5 | . 27 . . . . . 6 . . . . . . Launcher 1 | . . . . . . 5 4 . 7 7 . 3 . Special Weapon 2 | . . . 6 17 11 5 . . . . . . . Slashing Weapon 2 | . . . . . 6 7 1 . 7 1 6 1 7 Piercing Weapon 2 | . . . . . . . . . . 5 7 5 6 Naked Turns 24 | . 4 6 . . . . . . . . . 14 . Heaviest Build 30 | 10 30 2 4 4 6 10 15 16 16 16 17 17 6 Greatest Support 40 | 40 40 32 15 10 10 10 15 24 18 18 18 18 8 Greatest Overweight (x) 1 | . . . . . . . 1 . . . . . 1 Average Overweight (x) . | . . . . . . . . . . . . . . Largest Inventory Capacity 15 | 8 15 5 8 5 5 8 8 8 8 8 8 8 5 Average Capacity 7 | 6 10 5 5 5 5 8 8 8 8 8 8 7 5 Most Carried 8 | 4 6 5 5 5 5 6 6 8 7 8 8 8 2 Average Carried 5 | 2 5 4 4 4 4 5 5 7 7 7 8 6 2 Final Capacity 8 | 8 5 5 5 5 5 8 8 8 8 8 8 5 5 Final Carried 8 | 4 5 5 5 5 5 6 6 7 7 8 8 2 2 Class Distribution -------------------- 82% | Mutant 10% | Sprinter 7% | Hacker-Mutant Dominant Class ---------------- Mutant | -10/Materials Mutant | -10/Mines Mutant | -9/Materials Mutant | -9/Mines Sprinter | -9/Exiles Sprinter | -8/Mines Sprinter | -8/Materials Mutant | -7/Factory Mutant | -7/Waste Mutant | -7/Factory Mutant | -7/Lower Caves Hacker-Mutant | -7/Lower Caves Mutant | -7/Zion Resources | -11 -10 -10 -9 -9 -9 -8 -8 -7 -7 -7 -7 -7 -7 ----------- Run | Scr Mat Min Mat Min Exi Min Mat Fac Was Fac Low Low Zio Matter Collected 1105 | 188 160 32 . 30 184 12 48 205 . 119 87 40 . Remotely . | . . . . . . . . . . . . . . Salvage Created 873 | . 304 . . . . 1 48 67 . 119 97 237 . Parts 51 | . 22 . . . . 2 2 4 . 8 . 13 . Haulers Intercepted 2 | . . . . . . . 1 . . 1 . . . Recyclers Shooed 3 | . 3 . . . . . . . . . . . . Parts Field Recycled . | . . . . . . . . . . . . . . Retrieved Matter . | . . . . . . . . . . . . . . Parts Self-Destructed 13 | . . . . . . . . . . . 7 6 . Prevented . | . . . . . . . . . . . . . . Kills | -11 -10 -10 -9 -9 -9 -8 -8 -7 -7 -7 -7 -7 -7 ------- Run | Scr Mat Min Mat Min Exi Min Mat Fac Was Fac Low Low Zio Combat Hostiles Destroyed 12 | . 6 . . . . 1 . . . . . 5 . Melee 1 | . . . . . . . . . . . . 1 . Guns 6 | . 6 . . . . . . . . . . . . AOE 5 | . . . . . . 1 . . . . . 4 . Classes Destroyed 9 | . 5 . . . . . 1 1 . 1 . 1 . Worker 1 | . . . . . . . . . . 1 . . . Hauler 2 | . . . . . . . 1 . . 1 . . . Recycler 1 | . 1 . . . . . . . . . . . . Mechanic 1 | . 1 . . . . . . . . . . . . Operator 2 | . . . . . . . . 2 . . . . . Watcher 4 | . 1 . . . . . . 1 . 2 . . . Swarmer 9 | . 3 . . . . 1 . . . . . 5 . Grunt 3 | . 3 . . . . . . . . . . . . Decomposer 1 | . . . . . . . . . . . 1 . . Packrat 1 | . . . . . . . . . . . 1 . . Samaritan 3 | . . . . . . . . . . . . 3 . Best Kill Streak 4 | . 3 . . . . 1 1 1 . 2 . 4 . Combat Bots Only 4 | . 3 . . . . 1 . . . . . 4 . Max Kills in Single Turn 2 | . 1 . . . . 1 1 1 . 2 1 2 . Gunslinging . | . . . . . . . . . . . . . . Exploded 2 | . . . . . . 1 . . . . . 2 . Melee 1 | . . . . . . . . . . . . 1 . Uniques/NPCs Destroyed . | . . . . . . . . . . . . . . Combat | -11 -10 -10 -9 -9 -9 -8 -8 -7 -7 -7 -7 -7 -7 -------- Run | Scr Mat Min Mat Min Exi Min Mat Fac Was Fac Low Low Zio Damage Taken 1848 | . 347 . 42 83 . 15 147 18 . 128 36 426 606 Core 801 | . 87 . . . . . 13 . . 6 18 236 441 Absorbed by Shields . | . . . . . . . . . . . . . . Core Remaining (%) 90 | 100 . 65 . . . 100 97 . . . . . . Volleys Fired 56 | . 41 . 4 2 2 2 . . . 1 2 2 . Largest 2 | . 2 . 1 2 1 1 . . . 1 1 1 . Hottest 40 | . 40 . 30 40 20 30 . . . 30 30 30 . Shots Fired 100 | . 82 . 4 4 2 2 . . . 1 3 2 . Gun 82 | . 82 . . . . . . . . . . . . Cannon . | . . . . . . . . . . . . . . Launcher 10 | . . . 2 . . 2 . . . 1 3 2 . Special 8 | . . . 2 4 2 . . . . . . . . Kinetic 82 | . 82 . . . . . . . . . . . . Thermal 8 | . . . 2 4 2 . . . . . . . . Explosive 10 | . . . 2 . . 2 . . . 1 3 2 . Electromagnetic . | . . . . . . . . . . . . . . Robot Hit Streak 13 | . 13 . . . . 1 . . . 1 . 1 . Robot Miss Streak 4 | . 3 . . 4 . 1 . . . . . 1 . Penetration Max . | . . . . . . . . . . . . . . Secondary Targets . | . . . . . . . . . . . . . . Shots Hit Robots 73 | . 46 . . . . 2 2 5 . 4 3 6 5 Core Hits 36 | . 19 . . . . 1 1 1 . 5 . 9 . Critical Kills 1 | . 1 . . . . . . . . . . . . Critical Parts Destroyed . | . . . . . . . . . . . . . . Critical Strikes 1 | . 1 . . . . . . . . . . . . Destroy 1 | . 1 . . . . . . . . . . . . Melee Attacks 40 | . . . . . 1 1 2 5 . 3 7 13 8 Impact . | . . . . . . . . . . . . . . Slashing 19 | . . . . . 1 1 2 5 . . 1 7 2 Piercing 21 | . . . . . . . . . . 3 6 6 6 Sneak Attacks 10 | . . . . . . 1 1 1 . 1 2 3 1 Combat Hostiles . | . . . . . . . . . . . . . . Follow-up Attacks 1 | . . . . . . . . . . . . . 1 Damage Inflicted 2518 | . 380 . . . . 196 180 457 . 269 263 626 147 Guns 380 | . 380 . . . . . . . . . . . . Cannons . | . . . . . . . . . . . . . . Explosions 416 | . . . . . . 67 . . . 79 . 270 . Melee 1722 | . . . . . . 129 180 457 . 190 263 356 147 Ramming . | . . . . . . . . . . . . . . Kinetic 380 | . 380 . . . . . . . . . . . . Thermal . | . . . . . . . . . . . . . . Explosive 416 | . . . . . . 67 . . . 79 . 270 . Electromagnetic . | . . . . . . . . . . . . . . Impact . | . . . . . . . . . . . . . . Slashing 898 | . . . . . . 129 180 457 . . . 51 81 Piercing 824 | . . . . . . . . . . 190 263 305 66 Highest Corruption 7 | . . . . . . . . . 7 7 7 7 7 Average Corruption 6 | . . . . . . . . . 7 7 7 7 3 Corruption Purged . | . . . . . . . . . . . . . . Effects 18 | . . . . . . . . . . 5 7 5 1 Message Errors 1 | . . . . . . . . . . . 1 . . Matter Fused 3 | . . . . . . . . . . 1 1 1 . Heat Flow Errors 1 | . . . . . . . . . . 1 . . . Energy Discharges 4 | . . . . . . . . . . 1 . 2 1 Data Loss (minor) 6 | . . . . . . . . . . 2 2 2 . Data Loss (major) 2 | . . . . . . . . . . . 2 . . Misfires 1 | . . . . . . . . . . . 1 . . Overload Shots . | . . . . . . . . . . . . . . Overflow Damage 619 | . . . . . . 101 . 247 . . 230 . 41 Projectiles . | . . . . . . . . . . . . . . Explosions 12 | . . . . . . 12 . . . . . . . Melee 607 | . . . . . . 89 . 247 . . 230 . 41 Knockbacks . | . . . . . . . . . . . . . . Impact . | . . . . . . . . . . . . . . Kinetic . | . . . . . . . . . . . . . . Secondary . | . . . . . . . . . . . . . . Self-Inflicted Damage 141 | . . . 32 . . 15 . . . 46 . 48 . Shots 4 | . . . 1 . . 1 . . . 1 . 1 . Rammed . | . . . . . . . . . . . . . . Targets Rammed . | . . . . . . . . . . . . . . Kicked . | . . . . . . . . . . . . . . Crushed . | . . . . . . . . . . . . . . Highest Temperature 94 | . 12 . . . . . . . . 94 6 3 . Average Temperature 21 | . 7 . . . . . . . . 49 4 3 . Received Heat Transfer 355 | . 120 . 6 45 . . . 9 . 33 18 39 85 Siege Activations . | . . . . . . . . . . . . . . Robots Corrupted . | . . . . . . . . . . . . . . Combat Hostiles . | . . . . . . . . . . . . . . Parts Fried . | . . . . . . . . . . . . . . Impact Corruptions . | . . . . . . . . . . . . . . Robots Melted . | . . . . . . . . . . . . . . Combat Hostiles . | . . . . . . . . . . . . . . Parts Melted . | . . . . . . . . . . . . . . Heat Transferred . | . . . . . . . . . . . . . . Parts Sabotaged . | . . . . . . . . . . . . . . Parts Stolen 9 | . . . . . . . . . . . . 9 . Parts Stripped . | . . . . . . . . . . . . . . Power Chain Reactions . | . . . . . . . . . . . . . . Missiles Intercepted . | . . . . . . . . . . . . . . Alert | -11 -10 -10 -9 -9 -9 -8 -8 -7 -7 -7 -7 -7 -7 ------- Run | Scr Mat Min Mat Min Exi Min Mat Fac Was Fac Low Low Zio Peak Influence 289 | . 219 7 47 58 . 102 104 279 157 289 . . . Initial 109 | . . 7 2 18 . . 39 42 97 109 . . . Average 95 | . 103 7 6 23 . 25 73 142 119 204 . . . Maximum Alert Level 1 | . 1 . . . . . . 1 . 1 . . . Low Security (%) 77 | 100 88 100 100 100 . 100 100 55 100 34 . . . Level 1 22 | . 11 . . . . . . 44 . 65 . . . Level 2 . | . . . . . . . . . . . . . . Level 3 . | . . . . . . . . . . . . . . Level 4 . | . . . . . . . . . . . . . . Level 5 . | . . . . . . . . . . . . . . High Security . | . . . . . . . . . . . . . . Max Security . | . . . . . . . . . . . . . . Squads Dispatched 13 | . 4 . 2 . . . 2 4 . 1 . . . Investigation 8 | . 1 . 2 . . . 2 2 . 1 . . . Extermination . | . . . . . . . . . . . . . . Reinforcement 5 | . 3 . . . . . . 2 . . . . . Assault . | . . . . . . . . . . . . . . Garrison . | . . . . . . . . . . . . . . Intercept . | . . . . . . . . . . . . . . Construction Impeded . | . . . . . . . . . . . . . . Haulers Reinforced . | . . . . . . . . . . . . . . Active Scanning Responses . | . . . . . . . . . . . . . . Cargo Convoy Interrupts . | . . . . . . . . . . . . . . Stealth | -11 -10 -10 -9 -9 -9 -8 -8 -7 -7 -7 -7 -7 -7 --------- Run | Scr Mat Min Mat Min Exi Min Mat Fac Was Fac Low Low Zio Distress Signals 3 | . . . 1 . . . 1 . . 1 . . . Communications Jammed . | . . . . . . . . . . . . . . Distress Signals . | . . . . . . . . . . . . . . Times Spotted 96 | . 15 . 3 4 . 4 4 12 5 9 9 14 17 Peak Tracking Total 13 | . 4 . 4 2 9 4 5 7 5 4 7 6 13 Tactical Retreats 20 | . . . . 2 . 1 . 4 . 3 4 4 2 Traps | -11 -10 -10 -9 -9 -9 -8 -8 -7 -7 -7 -7 -7 -7 ------- Run | Scr Mat Min Mat Min Exi Min Mat Fac Was Fac Low Low Zio Traps Triggered 2 | . . . . . . . . 2 . . . . . Indirectly . | . . . . . . . . . . . . . . Trap Hack Attempts . | . . . . . . . . . . . . . . Triggered . | . . . . . . . . . . . . . . Disarmed . | . . . . . . . . . . . . . . Reprogrammed . | . . . . . . . . . . . . . . Reused . | . . . . . . . . . . . . . . Traps Extracted . | . . . . . . . . . . . . . . Installed . | . . . . . . . . . . . . . . Triggered . | . . . . . . . . . . . . . . Machines | -11 -10 -10 -9 -9 -9 -8 -8 -7 -7 -7 -7 -7 -7 ---------- Run | Scr Mat Min Mat Min Exi Min Mat Fac Was Fac Low Low Zio Machines Disabled 2 | . . . . . 1 . . . . 1 . . . Max in Single Turn 1 | . . . . . 1 . . . . 1 . . . Garrison Access 1 | . . . . . . . . 1 . . . . . Machines Sabotaged . | . . . . . . . . . . . . . . Garrisons Compromised . | . . . . . . . . . . . . . . Overloaded Fab Kills . | . . . . . . . . . . . . . . Fab Network Shutdowns . | . . . . . . . . . . . . . . Hacking | -11 -10 -10 -9 -9 -9 -8 -8 -7 -7 -7 -7 -7 -7 --------- Run | Scr Mat Min Mat Min Exi Min Mat Fac Was Fac Low Low Zio Machines Accessed 13 | . 2 . 1 . 2 . 3 3 . 2 . . . Terminals 5 | . 1 . 1 . . . 2 . . 1 . . . Fabricators . | . . . . . . . . . . . . . . Repair Stations 1 | . . . . . . . . . . 1 . . . Recycling Units 2 | . 1 . . . . . 1 . . . . . . Scanalyzers 1 | . . . . . . . . 1 . . . . . Garrison Access 2 | . . . . . . . . 2 . . . . . Total Hacks 36 | . 9 . 3 . 2 . 6 9 . 7 . . . Successful 12 | . 1 . . . 2 . 3 4 . 2 . . . Failed 24 | . 8 . 3 . . . 3 5 . 5 . . . Catastrophic 3 | . 2 . . . . . 1 . . . . . . Database Lockouts . | . . . . . . . . . . . . . . Manual 17 | . 7 . 3 . 1 . 5 1 . . . . . Terminals 19 | . 7 . 3 . . . 5 . . 4 . . . Fabricators . | . . . . . . . . . . . . . . Repair Stations 3 | . . . . . . . . . . 3 . . . Recycling Units 3 | . 2 . . . . . 1 . . . . . . Scanalyzers 5 | . . . . . . . . 5 . . . . . Garrison Access 4 | . . . . . . . . 4 . . . . . Terminal Hacks 4 | . 1 . . . 2 . 1 . . . . . . Record 1 | . . . . . 1 . . . . . . . . Part Schematic 1 | . 1 . . . . . . . . . . . . Hauler Manifests 1 | . . . . . . . 1 . . . . . . EX-Prototype ID Bank 1 | . . . . . 1 . . . . . . . . Fabricator Hacks . | . . . . . . . . . . . . . . Repair Station Hacks 2 | . . . . . . . . . . 2 . . . Scan Component 1 | . . . . . . . . . . 1 . . . Repair 1 | . . . . . . . . . . 1 . . . Recycling Unit Hacks . | . . . . . . . . . . . . . . Scanalyzer 3 | . . . . . . . . 3 . . . . . Insert Component 2 | . . . . . . . . 2 . . . . . Analyze 1 | . . . . . . . . 1 . . . . . Garrison Access Hacks 1 | . . . . . . . . 1 . . . . . Seal Access 1 | . . . . . . . . 1 . . . . . Unauthorized Hacks 2 | . . . . . . . 2 . . . . . . Terminals 1 | . . . . . . . 1 . . . . . . Botnet 1 | . . . . . . . 1 . . . . . . Fabricators . | . . . . . . . . . . . . . . Repair Stations . | . . . . . . . . . . . . . . Recycling Units 1 | . . . . . . . 1 . . . . . . Tunnel 1 | . . . . . . . 1 . . . . . . Scanalyzers . | . . . . . . . . . . . . . . Garrison Access . | . . . . . . . . . . . . . . Data Cores Recovered . | . . . . . . . . . . . . . . Used . | . . . . . . . . . . . . . . Hacking Detections 9 | . 2 . 1 . . . 2 2 . 2 . . . Full Trace Events 7 | . 2 . 1 . . . 1 2 . 1 . . . Feedback Events . | . . . . . . . . . . . . . . Feedback Blocked . | . . . . . . . . . . . . . . Robot Schematics Acquired . | . . . . . . . . . . . . . . Robots Built . | . . . . . . . . . . . . . . Matter . | . . . . . . . . . . . . . . Time . | . . . . . . . . . . . . . . Total Robot Build Rating . | . . . . . . . . . . . . . . Part Schematics Acquired 2 | . 1 . . . . . . 1 . . . . . Parts Built . | . . . . . . . . . . . . . . Matter . | . . . . . . . . . . . . . . Time . | . . . . . . . . . . . . . . Total Part Build Rating . | . . . . . . . . . . . . . . Parts Repaired 1 | . . . . . . . . . . 1 . . . Time 54 | . . . . . . . . . . 54 . . . Parts Recycled . | . . . . . . . . . . . . . . Recycled Matter . | . . . . . . . . . . . . . . Retrieved Matter . | . . . . . . . . . . . . . . Retrieved Components . | . . . . . . . . . . . . . . Parts Scanalyzed 2 | . . . . . . . . 2 . . . . . Part Schematics Acquired 1 | . . . . . . . . 1 . . . . . Parts Damaged . | . . . . . . . . . . . . . . Bothacking | -11 -10 -10 -9 -9 -9 -8 -8 -7 -7 -7 -7 -7 -7 ------------ Run | Scr Mat Min Mat Min Exi Min Mat Fac Was Fac Low Low Zio Used RIF Installer . | . . . . . . . . . . . . . . Robots Hacked . | . . . . . . . . . . . . . . Non-combat . | . . . . . . . . . . . . . . Combat . | . . . . . . . . . . . . . . Robot Hacks Applied . | . . . . . . . . . . . . . . Relay Couplers Released . | . . . . . . . . . . . . . . Robots Rewired 2 | . . . . . . . . . . . 2 . . Allies Hacked . | . . . . . . . . . . . . . . Hacks Repelled . | . . . . . . . . . . . . . . Allies | -11 -10 -10 -9 -9 -9 -8 -8 -7 -7 -7 -7 -7 -7 -------- Run | Scr Mat Min Mat Min Exi Min Mat Fac Was Fac Low Low Zio Total Allies 4 | . . 2 . . . . . . . . 2 . . Largest Group 2 | . . 2 2 . . . . . . . 2 . . Highest-Rated Group 48 | . . 39 39 . . . . . . . 48 . . Highest-Rated Ally 32 | . . 31 31 . . . . . . . 32 . . Total Orders 1 | . . . . . . . . . . . 1 . . STAY 1 | . . . . . . . . . . . 1 . . Ally Attacks 9 | . . . . . . . . . . . 9 . . Total Damage 223 | . . . . . . . . . . . 223 . . Kills 2 | . . . . . . . . . . . 2 . . Allies Corrupted . | . . . . . . . . . . . . . . Allies Melted . | . . . . . . . . . . . . . . Intel | -11 -10 -10 -9 -9 -9 -8 -8 -7 -7 -7 -7 -7 -7 ------- Run | Scr Mat Min Mat Min Exi Min Mat Fac Was Fac Low Low Zio Robot Analysis Total . | . . . . . . . . . . . . . . Derelict Logs Recovered 5 | . . 1 . 1 . . . . . . 1 2 . Drone Launches . | . . . . . . . . . . . . . . Drone Recoveries . | . . . . . . . . . . . . . . Exploration | -11 -10 -10 -9 -9 -9 -8 -8 -7 -7 -7 -7 -7 -7 ------------- Run | Scr Mat Min Mat Min Exi Min Mat Fac Was Fac Low Low Zio Turns Passed 2358 | 81 421 186 74 121 153 56 65 378 22 211 241 219 130 Spaces Moved 3956 | 46 195 269 146 322 440 146 166 651 63 359 601 333 219 Core 261 | 4 9 230 8 . . . . . . . . 1 9 Treads 228 | 42 186 . . . . . . . . . . . . Legs . | . . . . . . . . . . . . . . Wheels 39 | . . 39 . . . . . . . . . . . Hover 306 | . . . . . . . . 23 . . . 91 192 Flight 3122 | . . . 138 322 440 146 166 628 63 359 601 241 18 Fastest Speed 29 | 50 50 50 29 32 32 32 29 32 34 34 34 34 40 Average Speed 44 | 150 154 57 35 34 32 32 31 35 34 34 34 38 50 Slowest Speed 160 | 160 160 100 50 35 32 32 112 50 34 34 34 50 100 Overloaded Moves . | . . . . . . . . . . . . . . Propulsion Burnouts . | . . . . . . . . . . . . . . Robots Hopped 16 | . . . 2 4 . 1 4 5 . . . . . Cave-ins Triggered . | . . . . . . . . . . . . . . Exploration Rate (%) 44 | 4 48 72 21 62 70 35 27 23 71 11 79 50 48 Regions Visited 13 Branch Regions 7 Pre-discovered Areas 2 | . . . . . 1 . 1 . . . . . . Known Exits Taken 3 | . . . . . . . 1 . . 1 1 . . Unknown Exits Taken 8 | 1 1 1 1 1 1 1 . . . . . 1 . Scrap Searched 14 | . . 1 . 1 . 1 . . . . 2 9 . Spaces Dug 39 | . . . 13 . . . . . . . 20 6 . Terrain Destroyed 92 | . . . 13 . . 15 . . . 5 30 29 . Melee 7 | . . . . . . . . . . . 1 6 . Projectile . | . . . . . . . . . . . . . . AOE 85 | . . . 13 . . 15 . . . 5 29 23 . Terrain Rammed . | . . . . . . . . . . . . . . Walls Destroyed . | . . . . . . . . . . . . . . Machines Disabled . | . . . . . . . . . . . . . . Actions | -11 -10 -10 -9 -9 -9 -8 -8 -7 -7 -7 -7 -7 -7 --------- Run | Scr Mat Min Mat Min Exi Min Mat Fac Was Fac Low Low Zio Total 4404 | 55 248 299 160 321 447 151 172 789 62 441 624 407 228 Wait 227 | . 8 21 . . . . . 72 . 72 8 46 . Move 3912 | 45 194 268 141 313 439 143 157 641 62 358 600 332 219 Hop 16 | . . . 2 4 . 1 4 5 . . . . . Pick Up 16 | 4 1 3 1 . 1 . . 5 . 1 . . . Fast Attach 47 | 6 1 3 5 . 2 . 4 16 . 2 1 5 2 Attach 18 | . . 2 2 1 1 1 1 7 . 1 . 2 . Detach 15 | . 1 . 2 1 . 2 1 6 . 1 . 1 . Swap 8 | . . . . . . 1 . 2 . 1 3 1 . Drop 31 | . 2 2 3 . 1 . 3 12 . 1 1 6 . Fire 56 | . 41 . 4 2 2 2 . . . 1 2 2 . Melee 37 | . . . . . 1 1 2 5 . 3 6 12 7 Ram . | . . . . . . . . . . . . . . Kick . | . . . . . . . . . . . . . . Crush . | . . . . . . . . . . . . . . Escape Stasis 18 | . . . . . . . . 18 . . . . . Rewire 3 | . . . . . . . . . . . 3 . . Trap . | . . . . . . . . . . . . . . Miscellaneous . | . . . . . . . . . . . . . . Route ------- -11/Scrapyard -10/Materials (discovered 3 exits: *Mat / [*Min x2]) -10/Mines -9/Materials -9/Mines (discovered 2 exits: *Mat / *Exi) -9/Exiles (discovered 2 exits: [*Min x2]) -8/Mines -8/Materials -7/Factory -7/Waste -7/Factory -7/Lower Caves -7/Lower Caves (discovered 2 exits: *Fac / [*Zio]) -7/Zion History --------- Turn | Location | Event 3 | -11/Scrapyard | Discovered new exit (range 15) 82 | -11/Scrapyard | Entered Materials 169 | -10/Materials | Discovered new exit (range 16) 210 | -10/Materials | Discovered new exit (range 6) 307 | -10/Materials | Discovered new exit (range 13) 311 | -10/Materials | Build established: Mutant 499 | -10/Materials | Released all parts (5) 503 | -10/Materials | Entered Mines 579 | -10/Mines | Learned 2 Materials zone layouts 595 | -10/Mines | Discovered new exit (range 9) 637 | -10/Mines | Found a damaged Exp. Sensor Array with a note attached 639 | -10/Mines | Found Prototype Device 639 | -10/Mines | Identified Exp. Sensor Array 689 | -10/Mines | Entered Materials 689 | -9/Materials | Accompanied by 2 allies 689 | -9/Materials | Evolved 2 slots: Propulsion x1, Utility x1 694 | -9/Materials | Led the pair of lost Derelicts to an unsafe place 756 | -9/Materials | Discovered new exit (range 16) 763 | -9/Materials | Entered Mines 821 | -9/Mines | Learned 2 Materials zone layouts 822 | -9/Mines | Discovered new exit (range 9) 855 | -9/Mines | Deemed a non-threat by the Exiles lab entrance 881 | -9/Mines | Discovered new exit (range 5) 884 | -9/Mines | Entered Exiles 889 | -9/Exiles | Discovered new exit (range 15) 892 | -9/Exiles | Met 8R-AWN 898 | -9/Exiles | Met EX-HEX 918 | -9/Exiles | Met EX-DEC 923 | -9/Exiles | Learned location of Zion (-7) 929 | -9/Exiles | Met EX-BIN 934 | -9/Exiles | Aligned with FarCom system 934 | -9/Exiles | Given EX-Vault access code 942 | -9/Exiles | Opened EX-Vault 944 | -9/Exiles | Found Trap Reconfigurator 947 | -9/Exiles | Found Longsword +1 956 | -9/Exiles | Warned to stay clear of 0b10 Research branches 1026 | -9/Exiles | Attacked by the Exiles 1034 | -9/Exiles | Discovered new exit (range 10) 1037 | -9/Exiles | Stole two prototypes: Trap Reconfigurator, Longsword +1 1037 | -9/Exiles | Entered Mines 1078 | -8/Mines | Discovered new exit (range 6) 1093 | -8/Mines | Entered Materials 1093 | -8/Materials | Evolved 2 slots: Utility x2 1094 | -8/Materials | Identified exit to Factory 1158 | -8/Materials | Entered Factory 1158 | -7/Factory | Evolved 2 slots: Utility x2 1185 | -7/Factory | Lost 3 parts (2n1w) 1524 | -7/Factory | Discovered new exit (range 11) 1528 | -7/Factory | Identified exit to Factory 1536 | -7/Factory | Sucked down chute 1536 | -7/Factory | Entered Waste 1539 | -7/Waste | Spotted C-40 Crusher 1539 | -7/Waste | Spotted C-40 Crusher 1543 | -7/Waste | Spotted C-40 Crusher 1547 | -7/Waste | Spotted C-40 Crusher 1550 | -7/Waste | Spotted C-40 Crusher 1551 | -7/Waste | EMP discharged 1552 | -7/Waste | Spotted C-40 Crusher 1555 | -7/Waste | Discovered new exit (range 10) 1557 | -7/Waste | Identified exit to Factory 1558 | -7/Waste | Entered Factory 1688 | -7/Factory | Repaired Exp. Sensor Array 1763 | -7/Factory | Discovered new exit (range 10) 1769 | -7/Factory | Identified exit to Lower Caves 1769 | -7/Factory | Entered Lower Caves 1780 | -7/Lower Caves | Encountered a Warlord checkpoint 1798 | -7/Lower Caves | Learned Factory stockpile data 1850 | -7/Lower Caves | Attracted the attention of an 0b10 outpost 1969 | -7/Lower Caves | Spotted B-75 Beast 2003 | -7/Lower Caves | Discovered new exit (range 10) 2005 | -7/Lower Caves | Identified exit to Lower Caves 2010 | -7/Lower Caves | Entered another Lower Caves area 2012 | -7/Lower Caves | Attracted the attention of an 0b10 checkpoint 2012 | -7/Lower Caves | Discovered exit to Factory (range 8) 2012 | -7/Lower Caves | Learned location of 1 exit from Factory 2127 | -7/Lower Caves | Spotted B-75 Beast 2165 | -7/Lower Caves | Spotted QH-P0C(f) 2166 | -7/Lower Caves | Encountered a Master Thief 2166 | -7/Lower Caves | Spotted BW-M8V(f) 2167 | -7/Lower Caves | Encountered a Master Thief 2167 | -7/Lower Caves | Spotted G0-F1O(f) 2167 | -7/Lower Caves | Spotted CV-P04(f) 2167 | -7/Lower Caves | Spotted 2Y-AU9(f) 2168 | -7/Lower Caves | Encountered a Master Thief 2168 | -7/Lower Caves | Encountered a Master Thief 2168 | -7/Lower Caves | Encountered a Master Thief 2169 | -7/Lower Caves | Trap Reconfigurator stolen by Master Thief 2185 | -7/Lower Caves | Sml. Storage Unit stolen by Master Thief 2188 | -7/Lower Caves | Mic. Nuclear Core stolen by Master Thief 2195 | -7/Lower Caves | Imp. Sensor Array stolen by Master Thief 2202 | -7/Lower Caves | Imp. Terrain Scanner stolen by Master Thief 2211 | -7/Lower Caves | Discovered new exit (range 13) 2227 | -7/Lower Caves | Learned Factory terminal intel 2229 | -7/Lower Caves | Lost 5 parts (4u1w) 2229 | -7/Lower Caves | Entered Zion 2246 | -7/Zion | System corruption cleaned by Quarantine Array 2280 | -7/Zion | Attacked by Zionites 2323 | -7/Zion | Core integrity fell below 50% 2339 | -7/Zion | Released all parts (3) 2354 | -7/Zion | Core integrity fell below 20% 2359 | -7/Zion | Destroyed by R2-GUS(M) with Heavy Riot Gun Last Messages --------------- 02296_ Exp. Sensor Array destroyed. 02311_ 0B-CXU(z) pulls a Mak. Spear out of the Twisted Machinery. A strange signal echoes through Zion. 02330_ Xenon Bombardment Thruster destroyed. 02331_ T4-RC3(c) calibrates the Memory Banks. 02335_ IMP:G-0014175/C-0630194 disabled. 02336_ T4-RC3(c) calibrates the Memory Banks. 02339_ Released Spear. 02339_ Released Aerolev Unit. 02339_ Released Longsword +1. 02339_ Acquired Longsword +1. 02341_ D7-0UD(c) calibrates the Memory Banks. 02341_ Acquired Spear. 02348_ Longsword +1 follow-up attack on D7-0UD(c). 02349_ Memory Banks disabled. 02356_ Spear destroyed. 02358_ 0B-CXU(z) destroyed. 02358_ Destroyed Gravmag System. 02358_ Destroyed Lgt. Nuclear Core. 02358_ Destroyed Recalibrator. Map ----- +----------------------------------------------------+ | ???????????????"##""""""##"" | | ???????????????#"#""" """""" | | ?????????"""???##"" """ | | ??????""""""""?#""" | | ??????? #""" "" ## | | ????????"" ##"" """ """ # | | ????????""" """" """ "" | | ????????""" """"" "" "" | | ????????""" ""#"" "" | | ????????"" ###" "###" # | | ??????? ??#"" "##"" ## | | ??????""""""???##"" ""#""" | | ???????????????#""" ""##"" | | ???????????????##"" ""###" | | ???????????#####""# "##?#" | | ??????????##"""#### #"#?"" " | | ??????????#" #""""" "" | | ??????????#" #?""? """ | | ??????????#" #???? "" """ | | ??????????## z#### #???? "" "? | | ???????????# M#??######???? "" "? | | ??????###### #####????????""""?? "? | | ??????"""""" z """""????????""???? ? | | ?????######"MMM ######???????????????? | | ?????# " "! c" " #???????????????? | | ?????# " %@ """ #???????????????? | | ?????#"""" / " " #???????????????? | | ?????#""""" """""#???????????????? | | ?????#""""" """" #???????????????? | | ?????#" " "" ""#???????????????? | | ?????#"" """"="" " #???????????????? | | ?????#""""""" """""" #???????????????? | | ?????#"""" "" """""""#???????????????? | | ?????# " """"" #???????????????? | | ?????# """""""""""" #???????????????? | | ??????""""""""" """""#???????????????? | | ????????" """"" "" ??????????????????? | | ????????""""""" ""???????????????????? | | ????????????""" "???????????????????? | | ???????????????###???????????????????? | | ?????????????????????????????????????? | | ?????????????????????????????????????? | | ?????????????????????????????????????? | | ?????????????????????????????????????? | | ?????????????????????????????????????? | | ?????????????????????????????????????? | | ?????????????????????????????????????? | | ?????????????????????????????????????? | | ?????????????????????????????????????? | | ?????????????????????????????????????? | +----------------------------------------------------+ Best States ------------- Heat Dissipation 34 Energy Generation 15 Energy Capacity 160 Matter Stores 300 Matter Capacity 300 Sight Range 16 Robot Scan Range 20 Terrain Scan Range 14 Terrain Scan Density 10 Additional Mass Support 6 Evasion (%) 64 Melee Accuracy 24 Recoil Reduction 2 Offensive Hacking 21 Item Schematics ----------------- Med. Storage Unit | -10/Materials | Hacked Xenon Bombardment Thruster | -7/Factory | Scanalyzed Robot Schematics ------------------ None Fabricated ------------ Nothing Alien Tech Used ----------------- None Achievements -------------- None Challenges ------------ None Game ------ Seed CentriumArmorKinecellerator Manual? 0 Play Time 00:39:32 Cumulative 422.5 hours Start 2021.09.26 @ 16:23:53 End 2021.09.26 @ 17:04:04 Sessions 1 Manual Loads 0 Difficulty Rogue Special Mode None Game No. 404 Rogue 189 Adventurer 112 Explorer 103 Win Type - Total 30 Types 21/0/6/2/0/0/0/1/0 Lore% 84 Gallery% 90 Achievement% 76 Wizard Run 0 Options --------- ASCII 0 Keyboard 0 Movement Numpad Keybinds 0 Fullscreen 2 Font 18/TerminusBold Map View 76x50 Tactical HUD 1 Map Filters NONE Filters NONE Steam 1 RUN: 789bf7b6-77a3-4155-a3cb-41438bc316bd